bitfinex/quotes_ETHUSD_20240817
["timestamp","ask_amount","ask_price","bid_price","bid_amount"]
[1723900240238,3.01459984,2617.0,2616.9,6.41598]
[1723900240903,3.01459984,2617.0,2616.9,3.55]
[1723900241702,3.01459984,2617.0,2616.9,6.41598]
[1723900242159,3.01459984,2617.0,2616.9,11.76736]
[1723900243113,3.01459984,2617.0,2616.9,5.86598]
[1723900243349,3.01459984,2617.0,2616.9,8.73196]
[1723900243864,3.01459984,2617.0,2616.9,3.0]
[1723900244067,3.01459984,2617.0,2616.8,3.0]
[1723900244207,3.01459984,2617.0,2616.9,2.86598]
[1723900244526,3.01459984,2617.0,2616.8,3.0]
[1723900244714,3.01459984,2617.0,2616.6,2.91354567]
[1723900244917,3.01459984,2617.0,2616.6,0.04729567]
[1723900245249,3.01459984,2617.0,2616.8,2.866]
[1723900245481,3.01459984,2617.0,2616.6,0.04729567]
[1723900245708,3.01459984,2617.0,2616.7,2.86617]
[1723900246154,3.01459984,2617.0,2616.9,5.73196]
[1723900246343,3.01459984,2617.0,2616.9,6.28196]
[1723900247768,3.01459984,2617.0,2616.9,3.41598]
[1723900247952,3.01459984,2617.0,2616.9,0.55]
[1723900248959,3.01459984,2617.0,2616.9,3.41598]
[1723900249351,3.01459984,2617.0,2616.9,8.76736]
[1723900249543,3.01459984,2617.0,2616.9,11.76736]
[1723900249946,3.01459984,2617.0,2616.9,14.63334]
[1723900251438,3.01459984,2617.0,2616.6,0.04729567]
[1723900251801,3.01459984,2617.0,2616.6,2.91351567]
[1723900252109,3.01459984,2617.0,2616.6,0.04729567]
[1723900252319,2.4066,2616.9,2616.6,0.04729567]
[1723900252586,2.86615,2616.8,2616.6,0.04729567]
[1723900253140,5.73232,2616.8,2616.6,0.04729567]
[1723900253347,2.8662,2616.7,2616.6,0.04729567]
[1723900253584,2.86615,2616.8,2616.6,0.04729567]
[1723900253785,2.800675,2616.7,2616.6,0.04729567]
[1723900253941,2.2734,2616.7,2616.6,0.04729567]
[1723900255739,8.0058,2616.7,2616.6,0.04729567]
[1723900255943,5.7324,2616.7,2616.6,0.04729567]
[1723900256144,8.0058,2616.7,2616.6,0.04729567]
[1723900256347,5.94018,2616.7,2616.6,0.04729567]
[1723900256877,2.2734,2616.7,2616.6,0.04729567]
[1723900259080,5.28799984,2617.0,2616.6,0.04729567]
[1723900259279,5.28799984,2617.0,2616.6,2.91354567]
[1723900259482,5.28799984,2617.0,2616.6,0.04729567]
[1723900259861,2.86598,2616.9,2616.6,0.04729567]
[1723900260061,10.00088882,2617.0,2616.6,0.04729567]
[1723900260257,12.86683882,2617.0,2616.6,0.04729567]
[1723900260463,2.86607,2616.9,2616.6,0.04729567]
[1723900260796,10.00088882,2617.0,2616.6,0.04729567]
[1723900260797,3.01459984,2617.0,2616.6,2.51589567]
[1723900261032,3.01459984,2617.0,2616.9,11.06654]
[1723900261306,3.01459984,2617.0,2616.9,11.75056]
[1723900261654,3.01459984,2617.0,2616.9,14.61654]
[1723900262296,3.01459984,2617.0,2616.9,9.28196]
[1723900262610,3.01459984,2617.0,2616.9,12.14794]
[1723900262951,3.01459984,2617.0,2616.9,6.41598]
[1723900263175,3.01459984,2617.0,2616.9,9.28196]
[1723900264383,3.01459984,2617.0,2616.9,19.11442797]
[1723900264583,3.01459984,2617.0,2616.9,9.28196]
[1723900264891,3.01459984,2617.0,2616.9,12.14794]
[1723900268264,3.01459984,2617.0,2616.9,9.28196]
[1723900268597,3.01459984,2617.0,2616.9,8.73196]
[1723900269097,3.01459984,2617.0,2616.9,5.73196]
[1723900269306,3.01364452,2617.0,2616.9,13.93252]
[1723900269457,3.01364452,2617.0,2616.9,11.61944443]
[1723900270590,3.01364452,2617.0,2616.9,18.03542443]
[1723900270792,3.01364452,2617.0,2616.9,14.61654]
[1723900270999,3.01364452,2617.0,2616.9,17.48252]
[1723900271291,3.01364452,2617.0,2616.9,14.61654]
[1723900273458,3.01364452,2617.0,2616.9,17.48252]
[1723900273693,3.01364452,2617.0,2616.9,18.03542443]
[1723900274009,3.01364452,2617.0,2616.9,15.16944443]
[1723900274191,3.01364452,2617.0,2616.9,18.03542443]
[1723900275968,3.01364452,2617.0,2616.9,17.48252]
[1723900276208,3.01364452,2617.0,2616.9,11.59794]
[1723900276708,3.01364452,2617.0,2616.9,8.73196]
[1723900278115,3.01364452,2617.0,2616.9,9.28196]
[1723900279706,7e-06,2617.0,2616.9,22.14855355]
[1723900279914,2.4311,2618.0,2617.9,5.72978]
[1723900280083,2.86386,2618.9,2618.2,2.86446]
[1723900280280,2.4311,2618.8,2618.3,2.86442]
[1723900280471,2.717486,2618.8,2618.2,2.86446]
[1723900280793,2.717486,2618.8,2618.2,5.72896]
[1723900281180,2.717486,2618.8,2617.7,2.86501]
[1723900281181,2.4311,2618.7,2617.7,2.86501]
[1723900281380,2.4311,2618.7,2617.6,2.86515]
[1723900281381,2.4311,2618.2,2617.6,2.86515]
[1723900281597,2.4311,2618.2,2617.8,2.86498]
[1723900282173,2.4311,2618.2,2617.7,3.0]
[1723900283133,2.4311,2618.2,2617.8,2.86499]
[1723900283331,2.4311,2618.2,2618.1,2.86467]
[1723900283529,2.4311,2618.2,2618.1,5.72934]
[1723900283828,2.4311,2618.2,2618.1,8.72934]
[1723900284231,2.4311,2618.2,2618.1,5.86467]
[1723900285403,2.4311,2618.2,2618.1,8.72934]
[1723900286218,2.4311,2618.2,2618.1,9.27934]
[1723900286419,7.45,2618.7,2618.5,2.8642]
[1723900286591,7.45,2618.7,2618.5,5.72836]
[1723900286592,0.7736386,2618.7,2618.5,5.72836]
[1723900286793,7.45,2619.1,2618.1,3.62638114]
[1723900286794,7.45,2619.1,2618.7,2.86392]
[1723900287139,2.4311,2619.3,2618.9,2.86375]
[1723900287342,3.192,2619.2,2618.9,2.86372]
[1723900287638,2.4311,2619.3,2618.9,2.86373]
[1723900287797,2.4311,2619.3,2618.5,2.86415]
[1723900288003,2.4311,2619.3,2618.6,3.0]
[1723900288227,2.4311,2619.3,2619.0,2.86366]
[1723900288856,2.4311,2619.3,2618.8,2.86385]
[1723900289060,2.4311,2619.3,2618.9,2.86378]
[1723900289352,2.4311,2619.2,2618.7,2.86394]
[1723900289554,2.86347,2619.2,2618.8,3.0]
[1723900289729,0.98811,2619.3,2618.1,0.55]
[1723900289730,2.4311,2618.9,2618.3,2.86437]
[1723900289933,2.4311,2618.9,2618.4,3.0]
[1723900290144,2.4311,2618.8,2618.4,3.0]
[1723900290445,7.45,2619.1,2617.9,2.86479]
[1723900290446,2.4311,2618.5,2617.9,2.86479]
[1723900290648,2.4311,2618.5,2617.8,2.86499]
[1723900290649,2.4311,2618.5,2617.8,2.86493]
[1723900290820,5.824869,2618.5,2617.8,5.72984]
[1723900291025,2.960629,2618.5,2617.9,2.86478]
[1723900291346,10.31362,2619.1,2617.8,2.86491]
[1723900291347,2.4311,2618.3,2617.8,2.86499]
[1723900291546,5.29562,2618.3,2617.7,2.8651]
[1723900291848,6.111672,2618.2,2617.6,2.86512]
[1723900292063,5.29567,2618.2,2617.6,2.86512]
[1723900292208,5.29567,2618.2,2617.4,2.86537]
[1723900292209,2.4311,2618.1,2617.4,2.86537]
[1723900292415,0.529567,2618.0,2617.4,2.86536]
[1723900292608,2.86506,2617.8,2617.2,2.86564]
[1723900292830,2.4311,2617.7,2617.0,2.86578]
[1723900293051,2.960716,2617.7,2617.0,2.86578]
[1723900293255,2.8653,2617.6,2616.8,2.86601]
[1723900293459,2.8653,2617.6,2616.7,2.8662]
[1723900293460,5.29672,2617.3,2616.7,2.8662]
[1723900293758,5.29672,2617.3,2616.6,0.04729567]
[1723900293759,2.86577,2617.1,2616.6,0.04729567]
[1723900294166,2.86589,2617.0,2616.6,0.04729567]
[1723900294344,2.86577,2617.1,2616.6,0.04729567]
[1723900295657,5.826342,2617.3,2616.8,2.866]
[1723900295658,2.4311,2617.3,2616.8,2.866]
[1723900296025,2.4311,2617.3,2617.0,2.86586]
[1723900296226,2.86473,2618.1,2616.8,2.866]
[1723900296227,2.86476,2618.1,2617.3,2.86545]
[1723900296432,2.86476,2618.1,2617.3,2.86546]
[1723900296433,2.86479,2618.0,2617.3,2.86546]
[1723900296662,2.86479,2618.0,2617.2,2.86561]
[1723900296663,2.2921,2617.8,2617.2,2.86561]
[1723900296867,2.2921,2617.8,2617.3,3.41553]
[1723900297157,2.2921,2617.8,2617.3,3.41547]
[1723900297516,2.2921,2617.8,2617.3,6.28094]
[1723900297708,2.807788,2617.8,2617.3,3.41547]
[1723900298389,2.807788,2617.8,2617.1,5.73141]
[1723900298680,2.807788,2617.8,2617.2,3.55]
[1723900298877,2.8652,2617.7,2617.2,3.0]
[1723900299031,2.2921,2617.8,2617.2,2.86561]
[1723900299227,0.515704,2617.7,2617.3,3.0]
[1723900299637,3.380834,2617.7,2617.3,3.0]
[1723900299832,3.380834,2617.7,2617.1,3.0]
[1723900300153,3.380834,2617.7,2616.6,2.91351567]
[1723900300154,2.86547,2617.4,2616.6,2.91355567]
[1723900300485,2.86572,2617.2,2616.6,0.04729567]
[1723900300790,2.8659,2617.0,2616.6,0.04729567]
[1723900301141,2.2921,2616.9,2616.6,0.04729567]
[1723900301454,5.15809,2616.9,2616.6,0.04729567]
[1723900301662,2.2921,2616.9,2616.6,0.04729567]
[1723900302475,2.2921,2616.9,2616.6,2.91349567]
[1723900302966,2.2921,2616.9,2616.6,0.04729567]
[1723900303349,2.2921,2616.9,2616.7,2.8662]
[1723900303586,2.2921,2616.9,2616.6,2.91353567]
[1723900303888,2.2921,2616.9,2616.7,2.8662]
[1723900304785,2.2921,2616.9,2616.8,2.86609]
[1723900304997,2.2921,2617.4,2616.9,2.86597]
[1723900305198,3.323626,2617.4,2616.9,2.86597]
[1723900306248,3.323626,2617.4,2616.7,2.86613]
[1723900306249,6.189076,2617.4,2616.7,2.86613]
[1723900306443,1.3639036,2617.3,2616.7,2.86613]
[1723900306863,4.2294536,2617.3,2616.6,2.91358567]
[1723900307174,0.93869736,2617.2,2616.7,3.0]
[1723900307492,2.2921,2617.1,2616.7,3.0]
[1723900307789,2.2921,2617.1,2616.6,0.04729567]
[1723900307790,2.2921,2617.1,2616.6,5.91352567]
[1723900308582,3.0381361,2617.1,2616.6,5.91352567]
[1723900309166,2.2921,2617.1,2616.8,2.86608]
[1723900311044,2.2921,2617.1,2617.0,2.86587]
[1723900311276,2.2921,2617.1,2616.8,2.86608]
[1723900311277,2.2921,2617.1,2616.8,5.73206]
[1723900311547,2.2921,2617.1,2616.9,2.86594]
[1723900312163,2.2921,2617.1,2616.8,2.86603]
[1723900312884,2.2921,2617.1,2616.8,2.86602]
[1723900313100,2.2921,2617.1,2616.8,5.73204]
[1723900313411,2.2921,2617.1,2616.8,2.86602]
[1723900313624,2.2921,2617.1,2616.6,5.91354567]
[1723900313625,2.52131,2617.1,2616.6,3.04729567]
[1723900313773,2.52131,2617.1,2616.6,0.04729567]
[1723900314116,2.267,2616.9,2616.6,0.04729567]
[1723900314264,0.513289,2616.8,2616.6,0.04729567]
[1723900314463,2.267,2616.9,2616.6,0.04729567]
[1723900315472,2.267,2616.9,2616.6,2.91358567]
[1723900316262,2.267,2616.9,2616.6,2.91353567]
[1723900316520,2.267,2616.9,2616.8,2.86609]
[1723900317083,7.45,2617.2,2617.1,2.86576]
[1723900317084,9.717,2617.2,2617.1,2.86576]
[1723900317336,7.45,2617.2,2617.1,2.86576]
[1723900317487,2.267,2617.5,2617.3,2.86552]
[1723900319250,3.2387,2617.5,2617.1,2.86567]
[1723900319542,3.2387,2617.5,2616.8,3.0]
[1723900319543,2.267,2617.3,2616.8,5.86603]
[1723900319687,2.267,2617.3,2616.8,2.86603]
[1723900320005,2.267,2617.3,2616.9,3.0]
[1723900321925,2.017,2617.3,2616.9,3.0]
[1723900322947,2.017,2617.3,2616.9,5.86596]
[1723900323567,2.017,2617.3,2617.0,2.86584]
[1723900325758,2.017,2617.3,2617.0,5.73168]
[1723900326061,2.017,2617.3,2617.1,2.86569]
[1723900326425,2.4902,2617.6,2617.1,2.86569]
[1723900327316,2.4902,2617.6,2617.2,2.86564]
[1723900327826,2.4902,2617.6,2617.2,2.86559]
[1723900328026,2.4902,2617.6,2616.9,3.0]
[1723900328225,2.4902,2617.6,2617.4,2.86541]
[1723900328426,7.45,2617.7,2617.6,5.73044]
[1723900329554,2.4902,2617.9,2617.8,2.865]
[1723900329759,2.4902,2617.9,2617.8,5.73]
[1723900329914,7.45,2618.2,2618.0,2.86469]
[1723900329915,9.9402,2618.2,2618.0,2.86469]
[1723900330122,2.4902,2618.2,2618.0,2.86469]
[1723900330321,2.4902,2618.2,2618.1,2.86467]
[1723900334225,2.73922,2618.2,2617.9,2.86488]
[1723900334463,2.73922,2618.2,2617.7,2.865]
[1723900334652,5.6038,2618.2,2617.8,3.0]
[1723900335037,5.6038,2618.2,2617.7,3.0]
[1723900335244,0.56038,2618.1,2617.7,3.0]
[1723900338506,2.73922,2618.2,2617.7,5.86509]
[1723900339538,5.6038,2618.2,2617.7,3.0]
[1723900339792,2.4308,2618.0,2617.7,3.0]
[1723900340093,2.4308,2618.0,2617.5,5.86531]
[1723900340748,2.4308,2618.0,2617.6,2.86519]
[1723900341093,2.4308,2618.0,2617.9,2.86489]
[1723900341594,2.4308,2618.0,2617.8,2.86499]
[1723900341595,2.4308,2618.0,2617.8,2.86491]
[1723900342849,2.4308,2618.0,2617.9,5.72978]
[1723900343148,2.4308,2618.5,2618.0,2.8647]
[1723900343350,2.4308,2618.5,2618.1,2.86464]
[1723900343703,0.98808,2618.4,2618.1,2.86464]
[1723900344300,2.4308,2618.2,2617.0,1.28979915]
[1723900344463,2.4308,2617.6,2617.0,0.7893521]
[1723900344662,2.8655,2617.4,2617.0,0.7893521]
[1723900344952,5.29636,2617.3,2617.0,0.7893521]
[1723900345395,5.29654,2617.2,2616.6,0.04729567]
[1723900345565,6.141405,2617.2,2616.6,0.04729567]
[1723900345765,2.86582,2617.1,2616.6,0.04729567]
[1723900346353,2.86591,2617.0,2616.6,0.04729567]
[1723900346559,2.4308,2616.9,2616.6,2.91356567]
[1723900346794,2.4308,2616.9,2616.6,0.04729567]
[1723900347205,2.4308,2617.2,2616.9,2.86596]
[1723900347582,2.4308,2617.2,2617.0,0.55]
[1723900347825,2.4308,2617.2,2616.8,3.55]
[1723900348033,2.4308,2617.2,2616.8,6.41609]
[1723900348328,2.960424,2617.2,2616.8,3.0]
[1723900348516,2.960424,2617.2,2616.6,0.04729567]
[1723900348517,2.4308,2617.2,2616.7,2.86617]
[1723900348677,2.4308,2617.2,2616.8,3.0]
[1723900349117,5.29646,2617.2,2616.8,3.0]
[1723900349321,5.29646,2617.2,2616.6,3.04729567]
[1723900349517,5.29646,2617.2,2616.7,0.55]
[1723900351195,5.29646,2617.2,2616.7,3.41619]
[1723900351424,2.4308,2617.2,2616.8,3.0]
[1723900351626,2.4308,2617.2,2616.9,0.55]
[1723900352425,2.4308,2617.2,2616.9,3.41598]
[1723900352897,2.4308,2617.2,2616.9,0.55]
[1723900353112,2.960424,2617.2,2616.9,0.55]
[1723900353292,5.826094,2617.2,2616.9,0.55]
[1723900353492,5.826094,2617.2,2616.7,0.55]
[1723900353712,2.4308,2617.2,2616.7,0.55]
[1723900353912,2.4308,2617.2,2616.7,3.4162]
[1723900354114,2.4308,2617.2,2616.8,3.0]
[1723900354323,5.29647,2617.2,2616.9,0.55]
[1723900354728,5.29647,2617.2,2616.8,0.55]
[1723900354929,2.4308,2617.2,2616.8,0.55]
[1723900357179,5.29647,2617.2,2616.8,0.55]
[1723900358227,8.16221,2617.2,2616.8,0.55]
[1723900358438,5.29647,2617.2,2616.8,0.55]
[1723900358892,2.86583,2617.1,2616.8,0.55]
[1723900359053,8.691847,2617.2,2616.8,0.55]
[1723900359254,8.691847,2617.2,2616.6,0.04729567]
[1723900359255,5.826117,2617.2,2616.7,0.55]
[1723900360250,2.960447,2617.2,2616.7,0.55]
[1723900360584,5.29651,2617.2,2616.7,0.55]
[1723900361092,2.3158,2617.1,2616.7,0.55]
[1723900361702,2.3158,2617.1,2616.6,0.04729567]
[1723900361992,2.8662,2616.7,2616.6,0.04729567]
[1723900362297,5.182,2616.7,2616.6,0.04729567]
[1723900366554,8.0482,2616.7,2616.6,0.04729567]
[1723900367180,2.3158,2616.7,2616.6,0.04729567]
[1723900367494,2.3158,2616.7,2616.6,0.59729567]
[1723900369697,5.986795,2616.7,2616.6,0.59729567]
[1723900371872,3.156,2617.1,2616.6,0.59729567]
[1723900371873,2.3158,2617.1,2616.6,0.59729567]
[1723900372072,5.1816,2617.1,2616.7,0.55]
[1723900373354,2.3158,2617.1,2616.7,0.55]
[1723900375594,2.3158,2617.1,2616.8,2.86607]
[1723900375902,2.3158,2617.1,2616.9,0.55]
[1723900377668,7.45,2617.4,2616.9,0.55]
[1723900377869,7.45,2617.4,2617.2,2.86558]
[1723900378126,2.299,2617.7,2617.4,2.8654]
[1723900378409,7.45,2617.9,2617.5,0.55]
[1723900378760,10.31491,2617.9,2617.5,0.55]
[1723900378992,1.576991,2617.9,2617.4,3.41534]
[1723900379199,2.8649,2617.9,2617.4,0.55]
[1723900379377,2.865,2617.8,2617.3,0.55]
[1723900379580,3.69689,2617.9,2617.3,0.55]
[1723900380724,6.56186,2617.9,2617.3,3.41554]
[1723900381018,2.299,2617.4,2616.9,3.0]
[1723900381223,2.299,2617.4,2617.0,3.0]
[1723900381432,5.73037,2617.7,2617.1,2.86572]
[1723900381433,5.16417,2617.7,2617.1,2.86572]
[1723900381746,5.16417,2617.7,2617.0,5.86587]
[1723900381747,3.131017,2617.7,2617.0,3.0]
[1723900381882,2.86529,2617.6,2617.0,2.86585]
[1723900382233,2.86529,2617.6,2617.1,3.0]
[1723900382531,2.299,2617.7,2617.1,5.86576]
[1723900383198,2.299,2617.7,2617.2,0.55]
[1723900383543,2.299,2617.7,2617.3,2.86554]
[1723900383675,2.299,2617.7,2617.4,0.55]
[1723900384398,2.299,2617.7,2617.2,0.55]
[1723900385395,2.86526,2617.6,2617.2,0.55]
[1723900385596,5.16418,2617.7,2617.2,0.55]
[1723900385797,5.16322482,2617.7,2617.2,0.55]
[1723900386625,10.31495,2617.9,2617.2,2.9067]
[1723900386931,7.45,2617.9,2617.4,2.86541]
[1723900387111,10.31495,2617.9,2617.5,0.55]
[1723900387326,14.527025,2617.9,2617.2,3.41557]
[1723900387487,14.527025,2617.9,2617.2,6.28116]
[1723900387690,14.527025,2617.9,2617.2,3.41557]
[1723900388326,14.527015,2617.9,2617.2,6.28116]
[1723900388527,14.527005,2617.9,2617.2,6.28116]
[1723900388741,11.662045,2617.9,2617.2,6.28116]
[1723900388896,2.299,2617.8,2617.2,6.28116]
[1723900389098,2.299,2617.8,2617.3,2.86554]
[1723900389352,2.299,2617.8,2617.4,0.55]
[1723900390044,5.16402,2617.8,2617.4,0.55]
[1723900390260,5.16402,2617.8,2617.3,0.55]
[1723900390616,2.86511,2617.7,2617.3,0.55]
[1723900390799,3.846897,2617.8,2616.8,2.3567]
[1723900391006,2.299,2617.3,2616.8,2.86603]
[1723900391199,4.703897,2617.8,2616.9,5.86597]
[1723900391200,2.86539,2617.5,2616.9,5.86597]
[1723900391441,2.8655,2617.4,2616.7,5.8661]
[1723900391642,2.86555,2617.3,2616.7,3.0]
[1723900391952,5.16477,2617.1,2616.6,5.91356567]
[1723900392301,2.299,2617.1,2616.6,5.91356567]
[1723900392538,5.16477,2617.1,2616.6,3.04729567]
[1723900392718,5.39467,2617.1,2616.6,0.04729567]
[1723900393949,5.39467,2617.1,2616.7,0.55]
[1723900396334,5.16477,2617.1,2616.7,0.55]
[1723900397054,5.28861,2617.3,2616.7,3.41618]
[1723900397733,2.423,2617.3,2616.7,0.55]
[1723900397937,2.423,2617.3,2617.0,2.86587]
[1723900398136,10.31522,2617.6,2617.1,3.41571]
[1723900398137,12.73822,2617.6,2617.1,3.41571]
[1723900398349,9.873,2617.6,2617.1,3.41571]
[1723900398511,13.68245125,2617.6,2617.1,0.55]
[1723900398722,13.68245125,2617.6,2617.1,3.41569]
[1723900399460,12.73822,2617.6,2617.1,0.55]
[1723900399661,12.73822,2617.6,2617.1,3.41574]
[1723900400444,12.73822,2617.6,2617.1,0.55]
[1723900400638,12.73822,2617.6,2617.0,2.8658]
[1723900400836,16.54767125,2617.6,2617.1,0.55]
[1723900401161,9.09767125,2617.6,2617.1,0.55]
[1723900401371,2.86561,2617.3,2616.6,0.04729567]
[1723900401556,6.19813712,2617.5,2616.7,2.86613]
[1723900401737,6.19813712,2617.5,2616.9,2.86596]
[1723900401940,3.86620884,2617.4,2616.9,2.86596]
[1723900402123,5.28837,2617.5,2616.7,2.86614]
[1723900402630,5.28837,2617.5,2616.7,5.73228]
[1723900402631,2.86556,2617.3,2616.7,5.73228]
[1723900402865,2.86556,2617.3,2616.8,0.55]
[1723900403563,5.28837,2617.5,2616.8,0.55]
[1723900403786,5.28837,2617.5,2616.9,2.86596]
[1723900403938,5.28837,2617.5,2617.0,0.55]
[1723900404135,6.19815212,2617.5,2617.0,0.55]
[1723900404364,5.28838,2617.5,2617.0,0.55]
[1723900404912,2.86546,2617.4,2617.0,0.55]
[1723900406789,3.80945125,2617.6,2616.6,2.91359567]
[1723900406790,5.28872,2617.2,2616.6,2.91359567]
[1723900406954,5.28872,2617.2,2616.7,3.0]
[1723900407949,5.28872,2617.2,2616.8,0.55]
[1723900408245,2.423,2617.2,2616.8,0.55]
[1723900408439,5.28871,2617.2,2616.8,0.55]
[1723900410058,12.73838,2617.5,2616.8,3.41599]
[1723900410271,2.8655,2617.4,2616.8,3.41599]
[1723900410479,2.423,2617.3,2616.8,3.41599]
[1723900411264,2.423,2617.3,2616.8,6.28202]
[1723900411758,2.423,2617.3,2616.8,3.41599]
[1723900411963,2.423,2617.3,2616.8,6.28202]
[1723900412358,2.423,2617.3,2616.9,2.86598]
[1723900412549,2.423,2617.3,2617.0,0.55]
[1723900413346,3.983381,2617.3,2616.8,0.55]
[1723900413581,2.423,2617.3,2616.8,3.41607]
[1723900414786,2.423,2617.3,2616.9,2.86597]
[1723900415009,2.423,2617.3,2617.0,0.55]
[1723900415471,3.696843,2617.3,2616.7,3.0]
[1723900415677,6.562443,2617.3,2616.7,5.86614]
[1723900415915,5.2886,2617.3,2616.8,2.86609]
[1723900416621,5.2886,2617.3,2616.7,5.86619]
[1723900416803,5.2886,2617.3,2616.8,3.41607]
[1723900417999,2.423,2617.3,2616.8,3.416]
[1723900418586,2.423,2617.3,2616.9,2.86592]
[1723900418800,2.423,2617.3,2617.0,0.55]
[1723900419627,7.45,2617.5,2617.2,2.86558]
[1723900419834,2.2603,2617.6,2617.3,3.41553]
[1723900420991,2.2603,2617.6,2617.3,6.28106]
[1723900421205,2.2603,2617.6,2617.3,3.41548]
[1723900422951,2.2603,2617.6,2617.3,0.55]
[1723900423246,4.749831,2617.6,2617.3,2.86554]
[1723900423401,2.2603,2617.6,2617.4,0.55]
[1723900423599,2.2603,2617.6,2617.4,3.41542]
[1723900423832,2.2603,2617.6,2617.4,0.55]
[1723900425334,2.2603,2617.6,2617.3,0.55]
[1723900425934,1.314,2617.5,2617.3,0.55]
[1723900427930,1.314,2617.5,2617.2,0.55]
[1723900428910,4.823283,2617.5,2617.2,0.55]
[1723900429110,4.17955,2617.3,2617.0,3.0]
[1723900429323,2.2603,2617.2,2616.8,3.0]
[1723900429642,2.2603,2617.2,2616.9,1.32924512]
[1723900429812,1.314,2617.1,2616.8,3.0]
[1723900430081,2.2603,2617.2,2616.8,3.0]
[1723900430569,2.2603,2616.8,2616.6,0.04729567]
[1723900430772,5.12648,2616.8,2616.6,0.04729567]
[1723900430993,5.925727,2616.8,2616.6,0.04729567]
[1723900431310,2.8662,2616.7,2616.6,0.04729567]
[1723900431950,3.059547,2616.8,2616.6,0.04729567]
[1723900432355,3.059547,2616.8,2616.7,0.55]
[1723900433156,2.2603,2616.8,2616.7,0.55]
[1723900433587,2.2603,2617.1,2616.7,0.55]
[1723900434585,2.3385,2616.8,2616.7,0.55]
[1723900434791,2.858958,2616.8,2616.7,0.55]
[1723900435109,2.3385,2616.8,2616.7,0.55]
[1723900439012,5.20459,2616.8,2616.7,0.55]
[1723900439207,2.3385,2616.8,2616.6,0.04729567]
[1723900439364,2.8662,2616.7,2616.6,0.04729567]
[1723900439698,2.8662,2616.7,2616.6,0.59729567]
[1723900439902,3.673269,2616.7,2616.6,0.59729567]
[1723900441057,6.011769,2616.7,2616.6,0.59729567]
[1723900441526,3.145569,2616.7,2616.6,0.59729567]
[1723900441679,2.3385,2616.7,2616.6,0.59729567]
[1723900446370,2.86588,2617.0,2616.6,0.59729567]
[1723900446371,5.30448,2617.0,2616.6,0.59729567]
[1723900446572,2.4386,2617.0,2616.7,0.55]
[1723900446773,2.4386,2617.0,2616.7,3.41619]
[1723900447113,2.4386,2617.0,2616.7,3.41613]
[1723900447669,10.31568,2617.2,2616.8,2.86607]
[1723900447670,7.45,2617.2,2616.8,2.86607]
[1723900447866,7.45,2617.2,2616.9,0.55]
[1723900448461,7.45,2617.2,2616.8,0.55]
[1723900448909,7.45,2617.2,2616.8,3.41607]
[1723900449307,7.45,2617.2,2616.9,2.86598]
[1723900449507,7.45,2617.2,2617.0,0.55]
[1723900450515,19.77,2617.3,2617.0,6.41587]
[1723900450761,19.77,2617.3,2617.0,3.55]
[1723900452650,19.77,2617.3,2617.1,2.86576]
[1723900452851,19.77,2617.3,2617.2,0.55]
[1723900453189,10.31528,2617.6,2617.2,0.55]
[1723900453190,2.4386,2617.4,2617.2,0.55]
[1723900453486,2.4386,2617.4,2617.1,0.55]
[1723900456360,5.73116,2617.3,2616.9,0.55]
[1723900456561,5.372949,2617.3,2616.9,0.55]
[1723900457190,8.238589,2617.3,2616.9,0.55]
[1723900457493,5.372949,2617.3,2616.9,0.55]
[1723900457665,25.142949,2617.3,2616.9,0.55]
[1723900458001,1.314,2617.1,2616.9,0.55]
[1723900462476,1.314,2617.1,2617.0,2.86587]
[1723900462617,1.314,2617.1,2617.0,3.41587]
[1723900463416,21.084,2617.3,2617.0,3.41587]
[1723900463662,1.314,2617.3,2617.1,0.55]
[1723900464645,5.19866,2617.2,2616.8,3.0]
[1723900464860,1.314,2616.9,2616.7,5.86613]
[1723900465072,1.314,2616.9,2616.8,0.55]
[1723900466265,3.647,2616.9,2616.7,0.55]
[1723900466426,3.647,2616.9,2616.6,0.04729567]
[1723900466621,1.314,2616.7,2616.6,0.04729567]
[1723900467771,3.647,2616.9,2616.6,0.04729567]
[1723900467924,3.647,2616.9,2616.7,0.55]
[1723900470668,1.314,2616.9,2616.7,3.41614]
[1723900471468,1.314,2617.1,2616.8,2.86609]
[1723900471667,1.314,2617.1,2616.9,0.55]
[1723900472243,2.333,2617.0,2616.7,0.55]
[1723900472445,1.314,2617.1,2616.8,2.86609]
[1723900472767,1.314,2617.1,2616.9,0.55]
[1723900473744,9.783,2617.3,2617.0,2.86586]
[1723900473940,1.314,2617.2,2617.1,0.55]
[1723900474971,9.783,2617.3,2617.1,0.55]
[1723900475171,1.314,2617.2,2617.1,0.55]
[1723900475991,1.6787,2617.2,2616.9,0.55]
[1723900476289,1.6787,2617.2,2616.6,2.91351567]
[1723900476290,1.314,2616.9,2616.7,3.55]
[1723900476949,3.6097,2617.1,2616.8,2.86609]
[1723900477300,1.314,2617.1,2616.9,0.55]
[1723900477461,1.314,2617.1,2616.8,0.55]
[1723900479497,1.314,2617.1,2616.8,3.41608]
[1723900480020,1.314,2617.1,2616.8,0.55]
[1723900484697,1.314,2617.1,2616.8,3.41607]
[1723900485004,1.314,2617.1,2616.9,2.86594]